fUST/lending_fUST_20241006
["ID","MTS","AMOUNT","RATE_DAILY","PERIOD"]
[339939358,1728171048415,-500.0,0.00013698,2]
[339939359,1728171048424,-500.0,0.00013698,2]
[339939360,1728171048434,-500.0,0.00013698,2]
[339939361,1728171048444,-500.0,0.00013698,2]
[339939362,1728171048455,-500.0,0.00013698,2]
[339939363,1728171048464,-500.0,0.00013698,2]
[339939364,1728171048476,-500.0,0.00013698,2]
[339939365,1728171048495,-633.82,0.00013698,2]
[339939366,1728171048506,-500.0,0.00013698,2]
[339939367,1728171048516,-574.97,0.00013698,2]
[339939368,1728171048527,-500.0,0.00013698,2]
[339939369,1728171048536,-500.0,0.00013698,2]
[339939370,1728171048547,-1635.9,0.00013698,2]
[339939371,1728171048559,-512.0,0.00013698,2]
[339939372,1728171048569,-500.0,0.00013698,2]
[339939373,1728171048581,-500.0,0.00013698,2]
[339939374,1728171048595,-500.0,0.00013698,2]
[339939375,1728171048605,-500.0,0.00013698,2]
[339939376,1728171048618,-725.58,0.00013698,2]
[339939377,1728171048630,-500.0,0.00013698,2]
[339939378,1728171048639,-500.0,0.00013698,2]
[339939379,1728171048650,-500.0,0.00013698,2]
[339939380,1728171048661,-500.0,0.00013698,2]
[339939381,1728171048672,-500.0,0.00013698,2]
[339939382,1728171048682,-501.79665638,0.00013698,2]
[339939383,1728171048692,-151.0,0.00013698,2]
[339939384,1728171048704,-151.0,0.00013698,2]
[339939385,1728171048714,-500.0,0.00013698,2]
[339939386,1728171048725,-500.0,0.00013698,2]
[339939387,1728171048735,-511.73942794,0.00013698,2]
[339939388,1728171048746,-500.0,0.00013698,2]
[339939389,1728171048756,-609.86,0.00013698,2]
[339939390,1728171048766,-540.59534209,0.00013698,2]
[339939391,1728171048776,-500.0,0.00013698,2]
[339939392,1728171048787,-500.0,0.00013698,2]
[339939393,1728171048798,-500.0,0.00013698,2]
[339939394,1728171048808,-500.0,0.00013698,2]
[339939395,1728171048818,-500.0,0.00013698,2]
[339939396,1728171048828,-500.0,0.00013698,2]
[339939397,1728171048838,-500.0,0.00013698,2]
[339939398,1728171048849,-549.19,0.00013698,2]
[339939399,1728171048861,-500.0,0.00013698,2]
[339939400,1728171048870,-500.0,0.00013698,2]
[339939401,1728171048880,-500.0,0.00013698,2]
[339939402,1728171048890,-500.0,0.00013698,2]
[339939403,1728171048901,-500.0,0.00013698,2]
[339939404,1728171048911,-735.47,0.00013698,2]
[339939405,1728171048922,-500.0,0.00013698,2]
[339939406,1728171048933,-500.0,0.00013698,2]
[339939407,1728171048942,-1147.47,0.00013698,2]
[339939408,1728171048952,-518.06,0.00013698,2]
[339939409,1728171048962,-500.0,0.00013698,2]
[339939410,1728171048973,-577.94320501,0.00013698,2]
[339939411,1728171048982,-500.0,0.00013698,2]
[339939412,1728171048992,-151.0,0.00013698,2]
[339939413,1728171049001,-651.41,0.00013698,2]
[339939414,1728171049011,-151.0,0.00013698,2]
[339939415,1728171049020,-500.0,0.00013698,2]
[339939416,1728171049030,-322.97837058,0.00013698,2]
[339939417,1728171049039,-786.66,0.00013698,2]
[339939418,1728171049049,-500.0,0.00013698,2]
[339939419,1728171049061,-1062.53,0.00013698,2]
[339939420,1728171049070,-500.0,0.00013698,2]
[339939421,1728171049081,-500.0,0.00013698,2]
[339939422,1728171049091,-541.57,0.00013698,2]
[339939423,1728171049102,-500.0,0.00013698,2]
[339939424,1728171049112,-500.0,0.00013698,2]
[339939425,1728171049122,-500.0,0.00013698,2]
[339939426,1728171049132,-500.0,0.00013698,2]
[339939427,1728171049143,-562.45,0.00013698,2]
[339939428,1728171049152,-500.0,0.00013698,2]
[339939429,1728171049163,-500.0,0.00013698,2]
[339939430,1728171049176,-500.0,0.00013698,2]
[339939431,1728171049186,-500.0,0.00013698,2]
[339939432,1728171049195,-500.0,0.00013698,2]
[339939433,1728171049206,-500.0,0.00013698,2]
[339939434,1728171049218,-551.77,0.00013698,2]
[339939435,1728171049229,-500.0,0.00013698,2]
[339939436,1728171049238,-500.0,0.00013698,2]
[339939437,1728171049249,-548.08,0.00013698,2]
[339939438,1728171049259,-690.04,0.00013698,2]
[339939439,1728171049269,-500.0,0.00013698,2]
[339939440,1728171049279,-500.0,0.00013698,2]
[339939441,1728171049290,-500.0,0.00013698,2]
[339939442,1728171049301,-500.0,0.00013698,2]
[339939443,1728171049313,-500.0,0.00013698,2]
[339939444,1728171049323,-500.0,0.00013698,2]
[339939445,1728171049334,-500.0,0.00013698,2]
[339939446,1728171049344,-500.0,0.00013698,2]
[339939447,1728171049355,-500.0,0.00013698,2]
[339939448,1728171049368,-495.1146,0.00013698,2]
[339939449,1728171049379,-878.85,0.00013698,2]
[339939450,1728171049390,-500.0,0.00013698,2]
[339939451,1728171049401,-500.0,0.00013698,2]
[339939452,1728171049411,-500.0,0.00013698,2]
[339939453,1728171049423,-500.0,0.00013698,2]
[339939454,1728171049434,-500.0,0.00013698,2]
[339939455,1728171049444,-500.0,0.00013698,2]
[339939456,1728171049455,-500.0,0.00013698,2]
[339939457,1728171049465,-500.0,0.00013698,2]
[339939458,1728171049476,-500.0,0.00013698,2]
[339939459,1728171049486,-713.85,0.00013698,2]
[339939460,1728171049498,-500.0,0.00013698,2]
[339939461,1728171049508,-151.0,0.00013698,2]
[339939462,1728171049519,-151.0,0.00013698,2]
[339939463,1728171049529,-500.0,0.00013698,2]
[339939464,1728171049540,-500.0,0.00013698,2]
[339939465,1728171049550,-500.0,0.00013698,2]
[339939466,1728171049560,-658.69,0.00013698,2]
[339939467,1728171049570,-500.0,0.00013698,2]
[339939468,1728171049579,-920.01,0.00013698,2]
[339939469,1728171049592,-500.0,0.00013698,2]
[339939470,1728171049602,-500.0,0.00013698,2]
[339939471,1728171049613,-500.0,0.00013698,2]
[339939472,1728171049623,-590.51,0.00013698,2]
[339939473,1728171049633,-151.0,0.00013698,2]
[339939474,1728171049643,-151.0,0.00013698,2]
[339939475,1728171049653,-674.41,0.00013698,2]
[339939476,1728171049663,-857.44,0.00013698,2]
[339939477,1728171049672,-500.0,0.00013698,2]
[339939478,1728171049682,-500.0,0.00013698,2]
[339939479,1728171049691,-809.89,0.00013698,2]
[339939480,1728171049700,-574.46,0.00013698,2]
[339939481,1728171049711,-500.0,0.00013698,2]
[339939482,1728171049720,-573.84,0.00013698,2]
[339939483,1728171049730,-578.56,0.00013698,2]
[339939484,1728171049740,-860.55,0.00013698,2]
[339939485,1728171049749,-711.35,0.00013698,2]
[339939486,1728171049759,-500.0,0.00013698,2]
[339939487,1728171049768,-500.0,0.00013698,2]
[339939488,1728171049778,-500.0,0.00013698,2]
[339939489,1728171049787,-500.0,0.00013698,2]
[339939490,1728171049796,-500.0,0.00013698,2]
[339939491,1728171049806,-500.0,0.00013698,2]
[339939492,1728171049815,-771.97,0.00013698,2]
[339939493,1728171049824,-500.0,0.00013698,2]
[339939494,1728171049834,-570.52,0.00013698,2]
[339939495,1728171049843,-500.0,0.00013698,2]
[339939496,1728171049853,-500.0,0.00013698,2]
[339939497,1728171049862,-794.43,0.00013698,2]
[339939498,1728171049872,-500.0,0.00013698,2]
[339939499,1728171049881,-151.0,0.00013698,2]
[339939500,1728171050092,-151.0,0.00013698,2]
[339939501,1728171050102,-511.55408131,0.00013698,2]
[339939502,1728171050112,-500.0,0.00013698,2]
[339939503,1728171050121,-500.0,0.00013698,2]
[339939504,1728171050131,-500.0,0.00013698,2]
[339939505,1728171050141,-500.0,0.00013698,2]
[339939506,1728171050150,-500.0,0.00013698,2]
[339939507,1728171050159,-500.0,0.00013698,2]
[339939508,1728171050168,-258.300422,0.00013698,2]
[339939509,1728171050178,-258.300422,0.00013698,2]
[339939510,1728171050187,-500.0,0.00013698,2]
[339939511,1728171050197,-500.0,0.00013698,2]
[339939512,1728171050206,-258.300422,0.00013698,2]
[339939513,1728171050215,-938.1,0.00013698,2]
[339939514,1728171050225,-258.300422,0.00013698,2]
[339939515,1728171050233,-500.0,0.00013698,2]
[339939516,1728171050243,-500.0,0.00013698,2]
[339939517,1728171050252,-500.60226559,0.00013698,2]
[339939518,1728171050261,-551.09,0.00013698,2]
[339939519,1728171050270,-619.3628906,0.00013698,2]
[339939520,1728171050280,-519.19,0.00013698,2]
[339939521,1728171050289,-241.17573012,0.00013698,2]
[339939522,1728171050298,-500.0,0.00013698,2]
[339939523,1728171050307,-500.0,0.00013698,2]
[339939524,1728171050316,-500.0,0.00013698,2]
[339939525,1728171050325,-580.24,0.00013698,2]
[339939526,1728171050334,-537.57,0.00013698,2]
[339939527,1728171050344,-469.36414109,0.00013698,2]
[339939528,1728171050377,-346.83585891,0.00013698,2]
[339939529,1728171050388,-500.0,0.00013698,2]
[339939530,1728171050399,-500.0,0.00013698,2]
[339939531,1728171050409,-848.27,0.00013698,2]
[339939532,1728171050420,-500.0,0.00013698,2]
[339939533,1728171050432,-500.0,0.00013698,2]
[339939534,1728171050443,-500.0,0.00013698,2]
[339939535,1728171050455,-500.0,0.00013698,2]
[339939536,1728171050468,-235.36792638,0.00013698,2]
[339939537,1728171050482,-264.63207362,0.00013698,2]
[339939538,1728171050493,-1956.18,0.00013698,2]
[339939539,1728171050503,-500.0,0.00013698,2]
[339939540,1728171050514,-644.68710112,0.00013698,2]
[339939541,1728171050525,-500.0,0.00013698,2]
[339939542,1728171050536,-484.08260033,0.00013698,2]
[339939543,1728171050547,-500.0,0.00013698,2]
[339939544,1728171050556,-500.0,0.00013698,2]
[339939545,1728171050568,-500.0,0.00013698,2]
[339939546,1728171050579,-500.0,0.00013698,2]
[339939547,1728171050596,-500.0,0.00013698,2]
[339939548,1728171050607,-500.0,0.00013698,2]
[339939549,1728171050618,-659.93,0.00013698,2]
[339939550,1728171050630,-500.0,0.00013698,2]
[339939551,1728171050640,-170.6206135,0.00013698,2]
[339939552,1728171050650,-151.0,0.00013698,2]
[339939553,1728171050662,-151.0,0.00013698,2]
[339939554,1728171050673,-500.0,0.00013698,2]
[339939555,1728171050684,-500.0,0.00013698,2]
[339939556,1728171050695,-151.0,0.00013698,2]
[339939557,1728171050706,-500.0,0.00013698,2]
[339939558,1728171050717,-151.0,0.00013698,2]
[339939559,1728171050729,-611.92,0.00013698,2]
[339939560,1728171050739,-500.0,0.00013698,2]
[339939561,1728171050752,-500.0,0.00013698,2]
[339939562,1728171050765,-151.0,0.00013698,2]
[339939563,1728171050777,-500.0,0.00013698,2]
[339939564,1728171050788,-151.0,0.00013698,2]
[339939565,1728171050798,-500.0,0.00013698,2]
[339939566,1728171050807,-500.0,0.00013698,2]
[339939567,1728171050817,-500.0,0.00013698,2]
[339939568,1728171050826,-500.0,0.00013698,2]
[339939569,1728171050836,-500.0,0.00013698,2]
[339939570,1728171050846,-500.0,0.00013698,2]
[339939571,1728171050855,-843.4,0.00013698,2]
[339939572,1728171050866,-500.0,0.00013698,2]
[339939573,1728171050876,-500.0,0.00013698,2]
[339939574,1728171050886,-500.0,0.00013698,2]
[339939575,1728171050897,-500.0,0.00013698,2]
[339939576,1728171050908,-837.55,0.00013698,2]
[339939577,1728171050918,-509.12,0.00013698,2]
[339939578,1728171050927,-500.0,0.00013698,2]
[339939579,1728171050938,-500.0,0.00013698,2]
[339939580,1728171050948,-500.0,0.00013698,2]
[339939581,1728171050958,-517.87,0.00013698,2]
[339939582,1728171050968,-524.70397807,0.00013698,2]
[339939583,1728171050978,-500.0,0.00013698,2]
[339939584,1728171050988,-882.4,0.00013698,2]
[339939585,1728171050997,-500.0,0.00013698,2]
[339939586,1728171051008,-582.496583,0.00013698,2]
[339939587,1728171051018,-582.496583,0.00013698,2]
[339939588,1728171051028,-500.0,0.00013698,2]
[339939589,1728171051037,-151.0,0.00013698,2]
[339939590,1728171051048,-542.52577392,0.00013698,2]
[339939591,1728171051059,-500.0,0.00013698,2]
[339939592,1728171051069,-582.496583,0.00013698,2]
[339939593,1728171051081,-582.496583,0.00013698,2]
[339939594,1728171051094,-716.2,0.00013698,2]
[339939595,1728171051105,-500.0,0.00013698,2]
[339939596,1728171051115,-151.0,0.00013698,2]
[339939597,1728171051126,-883.91,0.00013698,2]
[339939598,1728171051137,-500.0,0.00013698,2]
[339939599,1728171051148,-500.0,0.00013698,2]
[339939600,1728171051161,-500.0,0.00013698,2]
[339939601,1728171051172,-957.12,0.00013698,2]
[339939602,1728171051182,-741.11,0.00013698,2]
[339939603,1728171051193,-500.0,0.00013698,2]
[339939604,1728171051204,-500.0,0.00013698,2]
[339939605,1728171051216,-500.0,0.00013698,2]
[339939606,1728171051226,-500.0,0.00013698,2]
[339939607,1728171051235,-500.0,0.00013698,2]
[339939608,1728171051244,-500.0,0.00013698,2]
[339939609,1728171051255,-500.0,0.00013698,2]
[339939610,1728171051266,-691.72,0.00013698,2]
[339939611,1728171051278,-500.0,0.00013698,2]
[339939612,1728171051287,-500.0,0.00013698,2]
[339939613,1728171051299,-247.595788,0.00013698,2]
[339939614,1728171051309,-247.595788,0.00013698,2]
[339939615,1728171051320,-500.0,0.00013698,2]
[339939616,1728171051332,-500.0,0.00013698,2]
[339939617,1728171051342,-887.4,0.00013698,2]
[339939618,1728171051353,-151.0,0.00013698,2]
[339939619,1728171051363,-151.0,0.00013698,2]
[339939620,1728171051374,-151.0,0.00013698,2]
[339939621,1728171051384,-151.0,0.00013698,2]
[339939622,1728171051393,-247.595788,0.00013698,2]
[339939623,1728171051403,-247.595788,0.00013698,2]
[339939624,1728171051413,-500.0,0.00013698,2]
[339939625,1728171051423,-636.08,0.00013698,2]
[339939626,1728171051433,-151.0,0.00013698,2]
[339939627,1728171051443,-500.0,0.00013698,2]
[339939628,1728171051452,-975.25,0.00013698,2]
[339939629,1728171051462,-500.0,0.00013698,2]
[339939630,1728171051472,-500.0,0.00013698,2]
[339939631,1728171051482,-312.92969425,0.00013698,2]
[339939632,1728171051493,-500.0,0.00013698,2]
[339939633,1728171051505,-500.0,0.00013698,2]
[339939634,1728171051516,-745.64,0.00013698,2]
[339939635,1728171051526,-811.88,0.00013698,2]
[339939636,1728171051538,-652.82,0.00013698,2]
[339939637,1728171051548,-500.0,0.00013698,2]
[339939638,1728171051558,-500.0,0.00013698,2]
[339939639,1728171051569,-500.0,0.00013698,2]
[339939640,1728171051580,-266.21799878,0.00013698,2]
[339939641,1728171051592,-2235.8,0.00013698,2]
[339939642,1728171051603,-500.0,0.00013698,2]
[339939643,1728171051614,-238.69494692,0.00013698,2]
[339939650,1728171387369,152.0,0.000192,120]
[339939679,1728172237903,-876.96,0.00010959,2]
[339939680,1728172237912,-385.85,0.00010959,2]
[339939681,1728172237922,-360.444446,0.00012,2]
[339939682,1728172237932,-150.0,0.000128,2]
[339939684,1728172237943,-300.0,0.0001356,2]
[339939685,1728172237952,-300.0,0.0001356,2]
[339939687,1728172237962,-15859.23387037,0.00013561,2]
[339939688,1728172237972,-501.31608332,0.00013567,2]
[339939689,1728172238007,-4601.1209594,0.00013567,2]
[339939690,1728172238017,-385.61173424,0.00013568,2]
[339939691,1728172238027,-385.61173422,0.00013571,2]
[339939692,1728172238037,-385.61173422,0.00013573,2]
[339939693,1728172238046,-385.61173422,0.00013576,2]
[339939694,1728172238056,-385.61173422,0.00013578,2]
[339939695,1728172238065,-1000.0,0.00013578,2]
[339939696,1728172238075,-15701.19112371,0.00013588,2]
[339939697,1728172238084,-991.9981828,0.00013588,2]
[339939698,1728172238094,-842.84753413,0.00013598,2]
[339939699,1728172238103,-7619.96417111,0.00013658,2]
[339939700,1728172238115,-74476.10178299,0.00013658,2]
[339939701,1728172238125,-467.0064767,0.00013662,2]
[339939702,1728172238135,-168.506,0.00013668,2]
[339939703,1728172238145,-18885.72749407,0.00013668,2]
[339939721,1728172239801,-1283.86751313,0.00013668,2]
[339939722,1728172239856,-89291.8262648,0.00013668,2]
[339939723,1728172239867,-54730.710636,0.00013678,2]
[339939724,1728172239878,-3000.0,0.0001369,2]
[339939725,1728172239889,-247.39182847,0.00013697,2]
[339939726,1728172239899,-511.1255354,0.00013698,2]
[339939727,1728172239910,-516.02767456,0.00013698,2]
[339939728,1728172239920,-500.0,0.00013698,2]
[339939729,1728172239932,-511.43573774,0.00013698,2]
[339939730,1728172239943,-500.0,0.00013698,2]
[339939731,1728172239954,-500.0,0.00013698,2]
[339939732,1728172239964,-175.98233897,0.00013698,2]
[339939733,1728172239974,-151.0,0.00013698,2]
[339939734,1728172239984,-151.0,0.00013698,2]
[339939735,1728172239994,-151.0,0.00013698,2]
[339939736,1728172240003,-624.26,0.00013698,2]
[339939737,1728172240013,-500.0,0.00013698,2]
[339939738,1728172240024,-500.0,0.00013698,2]
[339939739,1728172240034,-500.0,0.00013698,2]
[339939740,1728172240045,-500.0,0.00013698,2]
[339939741,1728172240057,-551.01,0.00013698,2]
[339939742,1728172240066,-500.0,0.00013698,2]
[339939743,1728172240077,-235.97013785,0.00013698,2]
[339939744,1728172240087,-500.0,0.00013698,2]
[339939745,1728172240099,-500.0,0.00013698,2]
[339939746,1728172240110,-1018.25,0.00013698,2]
[339939747,1728172240121,-500.0,0.00013698,2]
[339939748,1728172240131,-500.41,0.00013698,2]
[339939749,1728172240143,-500.0,0.00013698,2]
[339939750,1728172240153,-528.78,0.00013698,2]
[339939751,1728172240166,-500.0,0.00013698,2]
[339939752,1728172240176,-526.31,0.00013698,2]
[339939753,1728172240187,-500.0,0.00013698,2]
[339939754,1728172240197,-500.0,0.00013698,2]
[339939755,1728172240206,-500.0,0.00013698,2]
[339939756,1728172240217,-753.89,0.00013698,2]
[339939757,1728172240228,-500.0,0.00013698,2]
[339939758,1728172240237,-522.29388025,0.00013698,2]
[339939759,1728172240249,-165.94670431,0.00013698,2]
[339939760,1728172240258,-643.53,0.00013698,2]
[339939761,1728172240269,-500.0,0.00013698,2]
[339939762,1728172240280,-500.0,0.00013698,2]
[339939763,1728172240290,-500.0,0.00013698,2]
[339939764,1728172240301,-500.0,0.00013698,2]
[339939765,1728172240311,-500.0,0.00013698,2]
[339939766,1728172240322,-500.0,0.00013698,2]
[339939767,1728172240334,-500.0,0.00013698,2]
[339939768,1728172240345,-500.0,0.00013698,2]
[339939769,1728172240356,-500.0,0.00013698,2]
[339939770,1728172240366,-500.0,0.00013698,2]
[339939771,1728172240378,-500.0,0.00013698,2]
[339939772,1728172240388,-646.31,0.00013698,2]
[339939773,1728172240397,-500.0,0.00013698,2]
[339939774,1728172240407,-500.0,0.00013698,2]
[339939775,1728172240417,-500.0,0.00013698,2]
[339939776,1728172240428,-151.0,0.00013698,2]
[339939777,1728172240437,-500.0,0.00013698,2]
[339939778,1728172240446,-500.0,0.00013698,2]
[339939779,1728172240455,-519.01,0.00013698,2]
[339939780,1728172240466,-500.0,0.00013698,2]
[339939781,1728172240476,-500.0,0.00013698,2]
[339939782,1728172240487,-500.0,0.00013698,2]
[339939783,1728172240496,-642.84810241,0.00013698,2]
[339939784,1728172240505,-500.0,0.00013698,2]
[339939785,1728172240515,-500.0,0.00013698,2]
[339939786,1728172240525,-500.0,0.00013698,2]
[339939787,1728172240535,-739.8,0.00013698,2]
[339939788,1728172240547,-500.0,0.00013698,2]
[339939789,1728172240558,-500.0,0.00013698,2]
[339939790,1728172240570,-500.0,0.00013698,2]
[339939791,1728172240582,-776.14,0.00013698,2]
[339939792,1728172240595,-500.0,0.00013698,2]
[339939793,1728172240606,-500.0,0.00013698,2]
[339939794,1728172240616,-500.0,0.00013698,2]
[339939795,1728172240626,-500.0,0.00013698,2]
[339939796,1728172240636,-500.0,0.00013698,2]
[339939797,1728172240648,-500.0,0.00013698,2]
[339939798,1728172240658,-500.0,0.00013698,2]
[339939799,1728172240670,-500.0,0.00013698,2]
[339939800,1728172240679,-528.12,0.00013698,2]
[339939801,1728172240689,-500.0,0.00013698,2]
[339939802,1728172240700,-500.0,0.00013698,2]
[339939803,1728172240709,-500.0,0.00013698,2]
[339939804,1728172240719,-782.19,0.00013698,2]
[339939805,1728172240730,-500.0,0.00013698,2]
[339939806,1728172240740,-500.0,0.00013698,2]
[339939807,1728172240750,-681.71,0.00013698,2]
[339939808,1728172240759,-500.0,0.00013698,2]
[339939809,1728172240770,-500.0,0.00013698,2]
[339939810,1728172240780,-549.93,0.00013698,2]
[339939811,1728172240790,-500.0,0.00013698,2]
[339939812,1728172240799,-500.0,0.00013698,2]
[339939813,1728172240811,-500.0,0.00013698,2]
[339939814,1728172240820,-500.0,0.00013698,2]
[339939815,1728172240830,-500.0,0.00013698,2]
[339939816,1728172240841,-500.0,0.00013698,2]
[339939817,1728172240852,-500.0,0.00013698,2]
[339939818,1728172240861,-340.03,0.00013698,2]
[339939819,1728172240870,-500.0,0.00013698,2]
[339939820,1728172240879,-500.0,0.00013698,2]
[339939821,1728172240888,-500.0,0.00013698,2]
[339939822,1728172240897,-500.0,0.00013698,2]
[339939823,1728172240906,-500.0,0.00013698,2]
[339939824,1728172240916,-500.0,0.00013698,2]
[339939825,1728172240925,-338.71808216,0.00013698,2]
[339939826,1728172240934,-537.98116131,0.00013698,2]
[339939827,1728172240943,-500.0,0.00013698,2]
[339939828,1728172240952,-500.0,0.00013698,2]
[339939829,1728172240961,-559.04244448,0.00013698,2]
[339939830,1728172240970,-420.27844767,0.00013698,2]
[339939831,1728172240979,-500.0,0.00013698,2]
[339939832,1728172240989,-151.0,0.00013698,2]
[339939833,1728172240998,-500.0,0.00013698,2]
[339939834,1728172241007,-500.0,0.00013698,2]
[339939835,1728172241017,-500.0,0.00013698,2]
[339939836,1728172241025,-845.63,0.00013698,2]
[339939837,1728172241037,-151.0,0.00013698,2]
[339939838,1728172241046,-500.0,0.00013698,2]
[339939839,1728172241056,-500.0,0.00013698,2]
[339939840,1728172241065,-500.0,0.00013698,2]
[339939841,1728172241074,-500.0,0.00013698,2]
[339939842,1728172241085,-500.0,0.00013698,2]
[339939843,1728172241094,-808.26,0.00013698,2]
[339939844,1728172241103,-500.0,0.00013698,2]
[339939845,1728172241112,-500.0,0.00013698,2]
[339939846,1728172241122,-850.43,0.00013698,2]
[339939847,1728172241131,-661.51,0.00013698,2]
[339939848,1728172241142,-500.0,0.00013698,2]
[339939849,1728172241151,-500.0,0.00013698,2]
[339939850,1728172241160,-500.0,0.00013698,2]
[339939851,1728172241169,-500.0,0.00013698,2]
[339939852,1728172241178,-500.0,0.00013698,2]
[339939853,1728172241187,-500.0,0.00013698,2]
[339939854,1728172241197,-500.0,0.00013698,2]
[339939855,1728172241206,-500.0,0.00013698,2]
[339939856,1728172241215,-151.0,0.00013698,2]
[339939857,1728172241225,-500.0,0.00013698,2]
[339939858,1728172241234,-500.0,0.00013698,2]
[339939859,1728172241243,-500.0,0.00013698,2]
[339939860,1728172241252,-500.0,0.00013698,2]
[339939861,1728172241261,-500.0,0.00013698,2]
[339939862,1728172241270,-500.0,0.00013698,2]
[339939863,1728172241279,-151.0,0.00013698,2]
[339939864,1728172241289,-151.0,0.00013698,2]
[339939865,1728172241298,-151.0,0.00013698,2]
[339939866,1728172241307,-500.0,0.00013698,2]
[339939867,1728172241316,-151.0,0.00013698,2]
[339939868,1728172241325,-151.0,0.00013698,2]
[339939869,1728172241334,-151.0,0.00013698,2]
[339939870,1728172241343,-500.0,0.00013698,2]
[339939871,1728172241352,-500.0,0.00013698,2]
[339939872,1728172241362,-500.0,0.00013698,2]
[339939873,1728172241370,-500.0,0.00013698,2]
[339939874,1728172241379,-500.0,0.00013698,2]
[339939875,1728172241388,-151.0,0.00013698,2]
[339939876,1728172241398,-151.0,0.00013698,2]
[339939877,1728172241407,-151.0,0.00013698,2]
[339939878,1728172241420,-500.0,0.00013698,2]
[339939879,1728172241429,-500.0,0.00013698,2]
[339939880,1728172241439,-151.0,0.00013698,2]
[339939881,1728172241451,-500.0,0.00013698,2]
[339939882,1728172241460,-500.0,0.00013698,2]
[339939883,1728172241472,-500.0,0.00013698,2]
[339939884,1728172241483,-500.0,0.00013698,2]
[339939885,1728172241494,-714.57,0.00013698,2]
[339939886,1728172241503,-500.0,0.00013698,2]
[339939887,1728172241514,-500.0,0.00013698,2]
[339939888,1728172241524,-607.41,0.00013698,2]
[339939889,1728172241535,-625.62,0.00013698,2]
[339939890,1728172241545,-500.0,0.00013698,2]
[339939891,1728172241557,-676.12,0.00013698,2]
[339939892,1728172241566,-500.91953704,0.00013698,2]
[339939893,1728172241577,-500.0,0.00013698,2]
[339939894,1728172241589,-500.0,0.00013698,2]
[339939895,1728172241600,-500.0,0.00013698,2]
[339939896,1728172241611,-695.35,0.00013698,2]
[339939897,1728172241621,-631.03137144,0.00013698,2]
[339939898,1728172241631,-500.0,0.00013698,2]
[339939899,1728172241644,-257.858251,0.00013698,2]
[339939900,1728172241655,-257.858251,0.00013698,2]
[339939901,1728172241665,-257.858251,0.00013698,2]
[339939902,1728172241852,-257.858251,0.00013698,2]
[339939903,1728172241864,-500.0,0.00013698,2]
[339939904,1728172241874,-500.0,0.00013698,2]
[339939905,1728172241885,-1066.67,0.00013698,2]
[339939906,1728172241895,-257.858251,0.00013698,2]
[339939907,1728172241906,-257.858251,0.00013698,2]
[339939908,1728172241917,-589.62,0.00013698,2]
[339939909,1728172241927,-500.0,0.00013698,2]
[339939910,1728172241939,-500.0,0.00013698,2]